lending/lending_fUSD_20260312
["ID","MTS","AMOUNT","RATE_DAILY","PERIOD"]
[408291433,1773358248991,-354.90199074,0.00018027,2]
[408291434,1773358249001,-500.0,0.00018082,2]
[408291435,1773358249011,-500.0,0.00018082,2]
[408291436,1773358249021,-500.0,0.00018082,2]
[408291437,1773358249030,-500.0,0.00018082,2]
[408291438,1773358249040,-504.0,0.00018082,2]
[408291439,1773358249051,-500.0,0.00018082,2]
[408291440,1773358249060,-500.0,0.00018082,2]
[408291441,1773358249070,-1000.0,0.00018083,2]
[408291442,1773358249080,-500.0,0.00018136,2]
[408291443,1773358249090,-500.0,0.00018136,2]
[408291444,1773358249100,-500.0,0.00018136,2]
[408291445,1773358249110,-500.0,0.00018136,2]
[408291446,1773358249121,-504.0,0.00018136,2]
[408291447,1773358249133,-500.0,0.00018136,2]
[408291448,1773358249142,-500.0,0.00018136,2]
[408291449,1773358249153,-500.0,0.00018191,2]
[408291450,1773358249163,-336.58574152,0.00018191,2]
[408291451,1773358249173,-267.0,0.00018191,2]
[408291452,1773358249183,-474.0,0.00018191,2]
[408291453,1773358249196,-504.0,0.00018191,2]
[408291454,1773358249205,-500.0,0.00018191,2]
[408291455,1773358249215,-500.0,0.00018246,2]
[408291456,1773358249224,-504.0,0.00018246,2]
[408291457,1773358249234,-500.0,0.00018246,2]
[408291458,1773358249243,-500.0,0.00018301,2]
[408291459,1773358249253,-504.0,0.00018301,2]
[408291460,1773358249263,-500.0,0.00018301,2]
[408291461,1773358249273,-1000.0,0.00018306,2]
[408291462,1773358249283,-500.0,0.00018356,2]
[408291463,1773358249293,-504.0,0.00018356,2]
[408291464,1773358249303,-450.0,0.00018356,2]
[408291465,1773358249312,-7094.78,0.00018356,2]
[408291466,1773358249322,-450.0,0.0001841,2]
[408291467,1773358249332,-504.0,0.0001841,2]
[408291468,1773358249341,-504.0,0.00018465,2]
[408291469,1773358249351,-504.0,0.0001852,2]
[408291470,1773358249361,-504.0,0.00018575,2]
[408291471,1773358249371,-504.0,0.0001863,2]
[408291472,1773358249380,-504.0,0.00018684,2]
[408291473,1773358249391,-504.0,0.00018739,2]
[408291474,1773358249400,-504.0,0.00018794,2]
[408291475,1773358249410,-504.0,0.00018849,2]
[408291476,1773358249420,-1500.0,0.00018854,2]
[408291477,1773358249430,-504.0,0.00018903,2]
[408291478,1773358249440,-1600.0,0.00018951,2]
[408291479,1773358249450,-516.0,0.00018958,2]
[408291480,1773358249460,-350.0,0.00019,2]
[408291481,1773358249469,-700.0,0.00019007,2]
[408291482,1773358249480,-6347.0,0.00019049,2]
[408291483,1773358249489,-1152.0,0.00019167,2]
[408291484,1773358249499,-3000.0,0.00019178,2]
[408291485,1773358249509,-3000.0,0.00019178,2]
[408291486,1773358249519,-2920.4805476,0.00019178,2]
[408291487,1773358249528,-300.0,0.00019178,2]
[408291488,1773358249538,-3240.0,0.00019221,2]
[408291489,1773358249549,-338.073145,0.00019262,7]
[408291490,1773358249560,-222.07,0.00019262,2]
[408291491,1773358249570,-2000.0,0.00019402,2]
[408291492,1773358249580,-4609.0,0.00019422,2]
[408291493,1773358249590,-171.01,0.00019431,2]
[408291494,1773358249600,-680.0,0.00019458,2]
[408291495,1773358249610,-680.0,0.00019467,2]
[408291496,1773358249619,-680.0,0.00019504,2]
[408291497,1773358249629,-507.0,0.0001952,4]
[408291498,1773358249639,-680.0,0.00019545,2]
[408291499,1773358249648,-680.0,0.00019565,2]
[408291500,1773358249658,-500.0,0.000196,7]
[408291501,1773358249668,-680.0,0.00019657,2]
[408291502,1773358249678,-680.0,0.00019666,2]
[408291503,1773358249690,-500.0,0.000197,7]
[408291504,1773358249701,-500.0,0.000198,7]
[408291505,1773358249711,-2000.0,0.000198,2]
[408291506,1773358249720,-680.0,0.000198,2]
[408291507,1773358249730,-2954.42978653,0.0001981,2]
[408291508,1773358249740,-680.0,0.00019874,2]
[408291509,1773358249749,-25000.0,0.00019891,3]
[408291510,1773358249759,-25000.0,0.000199,3]
[408291511,1773358249770,-931.7225,0.000199,2]
[408291512,1773358249780,-10000.0,0.000199,2]
[408291513,1773358249790,-25000.0,0.000199,3]
[408291514,1773358249799,-173.57338945,0.000199,2]
[408291515,1773358249808,-920.33135913,0.000199,2]
[408291516,1773358249819,-194.84514731,0.000199,2]
[408291517,1773358249829,-16801.59937492,0.000199,3]
[408291518,1773358249839,-5437.62288642,0.000199,2]
[408291519,1773358249848,-500.0,0.000199,7]
[408291520,1773358249858,-8294.6520693,0.000199,2]
[408291521,1773358249867,-2000.0,0.000199,2]
[408291522,1773358249877,-2688.0,0.000199,2]
[408291523,1773358249887,-2636.0,0.000199,2]
[408291524,1773358249897,-530.2,0.00019902,2]
[408291525,1773358249906,-19403.09,0.00019902,2]
[408291526,1773358249916,-680.0,0.00019924,2]
[408291527,1773358249926,-247.97,0.00019928,2]
[408291528,1773358249938,-2500.0,0.00019949,2]
[408291529,1773358249947,-194.42908711,0.00019973,2]
[408291530,1773358249957,-250.0,0.0001998,2]
[408291531,1773358249966,-268.26457471,0.0001999,2]
[408291532,1773358249976,-151.0,0.00019997,2]
[408291533,1773358249986,-12881.2618977,0.00019997,2]
[408291534,1773358249995,-166089.6381666,0.00019997,2]
[408291535,1773358250004,-300.0,0.00019999,2]
[408291536,1773358250014,-300.0,0.00019999,2]
[408291537,1773358250024,-229.15310187,0.00019999,2]
[408291538,1773358250033,-666.0,0.00019999,2]
[408291539,1773358250043,-76411.35721197,0.00019999,7]
[408291540,1773358250053,-680.0,0.00019999,2]
[408291541,1773358250062,-558.0,0.0002,2]
[408291542,1773358250071,-92937.17208807,0.0002,2]
[408291544,1773358351568,500.0,8.6e-05,2]
[408291545,1773358352047,500.0,8.6e-05,2]
[408291546,1773358352522,500.0,8.6e-05,2]
[408291547,1773358353011,500.0,8.6e-05,2]
[408291548,1773358353515,602.82322107,8.6e-05,2]
[408291550,1773358386618,228.0,0.0001277,2]
[408291551,1773358386802,228.0,0.0001277,2]
[408291552,1773358392562,158.0,0.0001277,2]
[408291554,1773358546355,-154.75033432,0.00013499,2]
[408291555,1773358701200,289.59462796,0.00013498,2]
[408291556,1773359023950,276.34461396,0.00013496,2]
[408291559,1773359107003,-2953.573058,0.00013527,2]
[408291560,1773359107227,-4092.863884,0.00013527,2]
[408291561,1773359152910,-1201.41358805,0.0001356,2]
[408291562,1773359155776,3000.0,0.0002,120]
[408291563,1773359171237,3806.91,0.000135,2]
[408291564,1773359173832,-300.0,0.00013594,2]
[408291565,1773359185943,-300.0,0.00013595,2]
[408291566,1773359185970,-300.0,0.00013595,2]
[408291567,1773359186001,-1200.0,0.00013595,2]
[408291568,1773359186028,-300.0,0.00013595,2]
[408291569,1773359201551,-1200.0,0.00013596,2]
[408291570,1773359218121,-250.0,0.00013597,2]
[408291571,1773359218151,-2387.61904,0.00013597,2]
[408291572,1773359233551,-262.0,0.00013597,2]
[408291573,1773359249849,-1000.0,0.00013598,2]
[408291574,1773359266123,-150.0,0.00013598,2]
[408291575,1773359281816,196.0,0.00013598,2]
[408291576,1773359281855,150.0,0.00013598,2]
[408291577,1773359283508,300.0,0.00013598,2]
[408291578,1773359313386,1200.0,0.00013598,2]
[408291582,1773359375350,184.22974264,0.00013499,2]
[408291583,1773359401119,217.0,0.00013598,2]
[408291584,1773359401146,300.0,0.00013598,2]
[408291585,1773359401318,300.0,0.00013598,2]
[408291586,1773359401357,1200.0,0.00013598,2]
[408291592,1773359431488,-32942.6924,0.00013599,2]
[408291593,1773359431498,-1000.0,0.00013599,2]
[408291594,1773359431509,-262.0,0.00013599,2]
[408291595,1773359431519,-250.0,0.00013602,2]
[408291596,1773359431528,-500.0,0.00013699,2]
[408291597,1773359431537,-500.0,0.00013699,2]
[408291598,1773359431546,-500.0,0.00013699,2]
[408291599,1773359431555,-500.0,0.00013699,2]
[408291600,1773359431563,-500.0,0.00013699,2]
[408291601,1773359431572,-500.0,0.00013699,2]
[408291602,1773359431581,-500.0,0.00013699,2]
[408291603,1773359431591,-500.0,0.00013699,2]
[408291604,1773359431600,-500.0,0.00013699,2]
[408291605,1773359431610,-500.0,0.00013699,2]
[408291606,1773359431619,-258.34111407,0.00013699,2]
[408291607,1773359431628,-311.83,0.00013699,2]
[408291608,1773359431638,-288.243097,0.00013879,7]
[408291609,1773359431647,-311.83,0.00013973,2]
[408291610,1773359431656,-184.22974262,0.00014067,2]
[408291611,1773359431666,-311.85,0.00014247,2]
[408291612,1773359431675,-500.0,0.00014555,2]
[408291613,1773359431685,-500.84787046,0.00014558,2]
[408291614,1773359431694,-500.0,0.00014558,2]
[408291615,1773359431703,-6751.2313,0.00014627,2]
[408291616,1773359431712,-184.22974262,0.00014635,2]
[408291617,1773359431721,-500.0,0.00014675,2]
[408291619,1773359431730,-255.0,0.00014713,2]
[408291620,1773359431740,-151.0,0.00014719,2]
[408291622,1773359431749,-151.0,0.00014719,2]
[408291625,1773359431759,-151.0,0.00014719,2]
[408291628,1773359431768,-151.0,0.00014719,2]
[408291630,1773359431776,-151.0,0.00014719,2]
[408291632,1773359431785,-151.0,0.00014719,2]
[408291634,1773359431795,-151.0,0.00014719,2]
[408291636,1773359431804,-151.0,0.00014719,2]
[408291638,1773359431813,-151.0,0.00014719,2]
[408291640,1773359431822,-151.0,0.00014719,2]
[408291642,1773359431831,-151.0,0.00014719,2]
[408291644,1773359431840,-49259.32926173,0.00014728,2]
[408291646,1773359431849,-197.0,0.00014735,2]
[408291648,1773359431858,-1165.67213998,0.00014781,2]
[408291650,1773359431867,-5000.0,0.00014879,2]
[408291652,1773359431876,-420.0,0.00014903,2]
[408291653,1773359431885,-398.0,0.00014903,2]
[408291655,1773359431894,-420.0,0.00014903,2]
[408291658,1773359431903,-500.0,0.00014933,2]
[408291659,1773359431912,-300.0,0.00014957,2]
[408291661,1773359431921,-300.22500008,0.00014957,2]
[408291663,1773359431931,-1680.0,0.00014958,2]
[408291665,1773359431940,-250.0,0.00014959,2]
[408291667,1773359431949,-5014.36640399,0.00014959,2]
[408291669,1773359431958,-300.0,0.00014959,2]
[408291670,1773359431968,-167.23895875,0.00014991,2]
[408291671,1773359431977,-164.82231272,0.00014991,2]
[408291672,1773359431990,-500.0,0.00014991,2]
[408291673,1773359431999,-500.0,0.00014991,2]
[408291674,1773359432008,-500.0,0.00014991,2]
[408291675,1773359432017,-250.0,0.00015,2]
[408291676,1773359432027,-500.0,0.00015,30]
[408291677,1773359432036,-500.0,0.00015,30]
[408291678,1773359432045,-500.0,0.00015,30]
[408291679,1773359432054,-500.0,0.00015,30]
[408291680,1773359432063,-500.0,0.00015,30]
[408291681,1773359432072,-500.0,0.00015,30]
[408291682,1773359432082,-500.0,0.00015,30]
[408291683,1773359432090,-500.0,0.0001501,2]
[408291684,1773359432100,-500.0,0.0001501,2]
[408291685,1773359432109,-500.0,0.0001501,2]
[408291686,1773359432118,-500.0,0.0001501,2]
[408291687,1773359432127,-501.50731997,0.0001501,2]
[408291688,1773359432136,-503.57909426,0.0001501,2]
[408291689,1773359432146,-500.0,0.0001501,2]
[408291690,1773359432155,-500.0,0.0001501,2]
[408291691,1773359432165,-500.0,0.0001501,2]
[408291692,1773359432174,-506.34018222,0.00015102,2]
[408291693,1773359432183,-500.0,0.00015265,2]
[408291694,1773359432380,-500.0,0.00015288,2]
[408291695,1773359432391,-3296.0,0.000155,5]
[408291696,1773359432401,-500.0,0.00015558,2]
[408291697,1773359432410,-166.66,0.000159,2]
[408291698,1773359432419,-195.0,0.00015923,2]
[408291699,1773359432433,-10227.42,0.00016046,2]
[408291700,1773359432443,-9999.99,0.00016116,2]
[408291701,1773359432452,-999.99,0.00016116,2]
[408291702,1773359432462,-150.99,0.00016116,2]
[408291703,1773359432472,-9999.99,0.00016116,2]
[408291704,1773359432481,-3809.44,0.00016116,2]
[408291705,1773359432491,-3199.35,0.00016116,2]
[408291706,1773359432500,-480.0,0.00016334,2]
[408291707,1773359432509,-587.0,0.00016334,2]
[408291708,1773359432519,-166.66,0.00016424,2]
[408291709,1773359432528,-2351.0,0.00016453,2]
[408291710,1773359432537,-360.303871,0.00016654,7]
[408291711,1773359432547,-166.54,0.00016712,2]
[408291712,1773359432556,-3200.11,0.00016712,2]
[408291713,1773359432565,-153.88,0.00016747,2]
[408291714,1773359432574,-499.03336123,0.00016798,2]
[408291715,1773359432583,-500.0,0.00016849,2]
[408291716,1773359432593,-166.66,0.00016949,2]
[408291717,1773359432602,-300.0,0.00017,2]
[408291718,1773359432611,-507.0,0.00017,2]
[408291719,1773359432620,-260.0,0.0001708,2]
[408291720,1773359432629,-500.0,0.00017193,2]
[408291721,1773359432638,-500.0,0.00017248,2]
[408291722,1773359432647,-500.0,0.00017303,2]
[408291723,1773359432656,-500.0,0.00017358,2]
[408291724,1773359432665,-500.0,0.00017413,2]
[408291725,1773359432675,-500.0,0.00017468,2]
[408291726,1773359432684,-166.66,0.00017474,2]
[408291727,1773359432696,-1500.0,0.00017504,2]
[408291728,1773359432705,-4000.0,0.00017519,2]
[408291729,1773359432715,-500.0,0.00017523,2]
[408291730,1773359432724,-500.0,0.00017578,2]
[408291731,1773359432733,-24686.15,0.0001763,2]
[408291732,1773359432743,-500.0,0.00017633,2]
[408291733,1773359432752,-559.39,0.00017675,2]
[408291734,1773359432762,-500.0,0.00017688,2]
[408291735,1773359432771,-500.0,0.00017743,2]
[408291736,1773359432780,-160.0,0.00017893,2]
[408291737,1773359432789,-556.0,0.00017902,2]
[408291738,1773359432798,-153.88,0.00017943,2]
[408291739,1773359432807,-4000.0,0.00017957,2]
[408291740,1773359432817,-379.29541337,0.00017969,2]
[408291741,1773359432826,-166.66,0.00017999,2]
[408291742,1773359432836,-200.0,0.00018084,2]
[408291743,1773359432845,-3292.0,0.00018099,2]
[408291744,1773359432856,-2473.144,0.00018168,2]
[408291745,1773359432866,-173.084,0.00018168,2]
[408291746,1773359432875,-1618.09,0.00018193,2]
[408291747,1773359432884,-4000.0,0.00018395,2]
[408291748,1773359432893,-6701.83109452,0.00018503,2]
[408291749,1773359432902,-166.66,0.00018524,2]
[408291750,1773359432911,-194.00601262,0.00018603,2]
[408291751,1773359432921,-500.0,0.00018603,2]
[408291752,1773359432930,-500.0,0.00018603,2]
[408291753,1773359432940,-500.0,0.00018603,2]
[408291754,1773359432950,-567.32168703,0.00018603,2]
[408291755,1773359432959,-500.0,0.00018603,2]
[408291756,1773359432968,-500.0,0.00018603,2]
[408291757,1773359432977,-500.0,0.00018603,2]
[408291758,1773359432987,-181.34715684,0.00018603,2]
[408291759,1773359432996,-500.0,0.00018603,2]
[408291760,1773359433005,-500.0,0.00018603,2]
[408291761,1773359433014,-500.0,0.00018603,2]
[408291762,1773359433023,-567.32168703,0.00018603,2]
[408291763,1773359433033,-500.0,0.00018603,2]
[408291764,1773359433042,-500.0,0.00018603,2]
[408291765,1773359433051,-500.0,0.00018603,2]
[408291766,1773359433060,-567.32168703,0.00018603,2]
[408291767,1773359433069,-500.0,0.00018603,2]
[408291768,1773359433078,-313.33104695,0.00018603,2]
[408291769,1773359433087,-500.0,0.00018603,2]
[408291770,1773359433096,-500.0,0.00018603,2]
[408291771,1773359433105,-500.0,0.00018603,2]
[408291772,1773359433114,-567.32168703,0.00018603,2]
[408291773,1773359433123,-500.0,0.00018603,2]
[408291774,1773359433132,-500.0,0.00018603,2]
[408291775,1773359433141,-500.0,0.00018603,2]
[408291776,1773359433151,-493.39386795,0.00018603,2]
[408291777,1773359433160,-500.0,0.00018603,2]
[408291778,1773359433169,-567.32168703,0.00018603,2]
[408291779,1773359433180,-500.0,0.00018603,2]
[408291780,1773359433189,-500.0,0.00018603,2]
[408291781,1773359433199,-500.0,0.00018603,2]
[408291782,1773359433208,-567.32168703,0.00018603,2]
[408291783,1773359433218,-278.39814466,0.00018603,2]
[408291784,1773359433228,-500.0,0.00018603,2]
[408291785,1773359433237,-567.32168703,0.00018603,2]
[408291786,1773359433247,-500.0,0.00018603,2]
[408291787,1773359433256,-500.0,0.00018603,2]
[408291788,1773359433266,-500.0,0.00018603,2]
[408291789,1773359433276,-567.32168703,0.00018603,2]
[408291790,1773359433285,-175.64967895,0.00018603,2]
[408291791,1773359433295,-567.32168703,0.00018603,2]
[408291792,1773359433305,-500.0,0.00018603,2]
[408291793,1773359433315,-567.32168703,0.00018603,2]
[408291794,1773359433325,-500.0,0.00018603,2]
[408291795,1773359433335,-500.0,0.00018603,2]
[408291796,1773359433345,-567.32168703,0.00018603,2]
[408291797,1773359433355,-500.0,0.00018603,2]
[408291798,1773359433365,-567.32168703,0.00018603,2]
[408291799,1773359433374,-500.0,0.00018603,2]
[408291800,1773359433384,-361.24329912,0.00018603,2]
[408291801,1773359433394,-567.32168703,0.00018603,2]
[408291802,1773359433403,-567.32168703,0.00018603,2]
[408291803,1773359433412,-567.32168703,0.00018603,2]
[408291804,1773359433421,-567.32168703,0.00018603,2]
[408291805,1773359433435,-567.32168703,0.00018603,2]
[408291806,1773359433444,-567.32168703,0.00018603,2]
[408291807,1773359433453,-567.32168703,0.00018603,2]
[408291808,1773359433466,-567.32168703,0.00018603,2]
[408291809,1773359433476,-567.32168703,0.00018603,2]
[408291810,1773359433485,-567.32168703,0.00018603,2]
[408291811,1773359433495,-567.32168703,0.00018603,2]
[408291812,1773359433505,-567.32168703,0.00018603,2]
[408291813,1773359433517,-567.32168703,0.00018603,2]
[408291814,1773359433526,-567.32168703,0.00018603,2]
[408291815,1773359433536,-567.32168703,0.00018603,2]
[408291816,1773359433545,-567.32168703,0.00018603,2]
[408291817,1773359433555,-567.32168703,0.00018603,2]
[408291818,1773359433564,-567.32168703,0.00018603,2]
[408291819,1773359433574,-567.32168703,0.00018603,2]
[408291820,1773359433584,-567.32168703,0.00018603,2]
[408291821,1773359433594,-567.32168703,0.00018603,2]
[408291822,1773359433603,-567.32168703,0.00018603,2]
[408291823,1773359433612,-567.32168703,0.00018603,2]
[408291824,1773359433622,-567.32168703,0.00018603,2]
[408291825,1773359433631,-567.32168703,0.00018603,2]
[408291826,1773359433641,-567.32168703,0.00018603,2]
[408291827,1773359433650,-567.32168703,0.00018603,2]
[408291828,1773359433659,-567.32168703,0.00018603,2]
[408291829,1773359433668,-567.32168703,0.00018603,2]
[408291830,1773359433678,-567.32168703,0.00018603,2]
[408291831,1773359433687,-567.32168703,0.00018603,2]
[408291832,1773359433696,-567.32168703,0.00018603,2]
[408291833,1773359433706,-567.32168703,0.00018603,2]
[408291834,1773359433715,-567.32168703,0.00018603,2]
[408291835,1773359433724,-567.32168703,0.00018603,2]
[408291836,1773359433733,-567.32168703,0.00018603,2]
[408291837,1773359433742,-567.32168703,0.00018603,2]
[408291838,1773359433752,-567.32168703,0.00018603,2]
[408291839,1773359433761,-1108.48229249,0.00018603,2]
[408291840,1773359433770,-1108.48229249,0.00018603,2]
[408291841,1773359433779,-1108.48229249,0.00018603,2]
[408291842,1773359433788,-1108.48229249,0.00018603,2]
[408291843,1773359433797,-1108.48229249,0.00018603,2]
[408291844,1773359433806,-1108.48229249,0.00018603,2]
[408291845,1773359433815,-1108.48229249,0.00018603,2]
[408291846,1773359433825,-1108.48229249,0.00018603,2]
[408291847,1773359433834,-1108.48229249,0.00018603,2]
[408291848,1773359433843,-1108.48229249,0.00018603,2]
[408291849,1773359433852,-1108.48229249,0.00018603,2]
[408291850,1773359433861,-1108.48229249,0.00018603,2]
[408291851,1773359433870,-1108.48229249,0.00018603,2]
[408291852,1773359433880,-1108.48229249,0.00018603,2]
[408291853,1773359433889,-1108.48229249,0.00018603,2]
[408291854,1773359433898,-1108.48229249,0.00018603,2]
[408291855,1773359433908,-1108.48229249,0.00018603,2]
[408291856,1773359433917,-1108.48229249,0.00018603,2]
[408291857,1773359433926,-1108.48229249,0.00018603,2]
[408291858,1773359433935,-1108.48229249,0.00018603,2]
[408291859,1773359433944,-1108.48229249,0.00018603,2]
[408291860,1773359433953,-1108.48229249,0.00018603,2]
[408291861,1773359433962,-1108.48229249,0.00018603,2]
[408291862,1773359433972,-1059.9861922,0.00018603,2]
[408291863,1773359433982,-1059.9861922,0.00018603,2]
[408291864,1773359433991,-1059.9861922,0.00018603,2]
[408291865,1773359434000,-1059.9861922,0.00018603,2]
[408291866,1773359434010,-1059.9861922,0.00018603,2]
[408291867,1773359434019,-1059.9861922,0.00018603,2]
[408291868,1773359434028,-1059.9861922,0.00018603,2]
[408291869,1773359434038,-1059.9861922,0.00018603,2]
[408291870,1773359434047,-1059.9861922,0.00018603,2]
[408291871,1773359434056,-1059.9861922,0.00018603,2]
[408291872,1773359434065,-1059.9861922,0.00018603,2]
[408291873,1773359434075,-1059.9861922,0.00018603,2]
[408291874,1773359434084,-1059.9861922,0.00018603,2]
[408291875,1773359434093,-1059.9861922,0.00018603,2]
[408291876,1773359434102,-1059.9861922,0.00018603,2]
[408291877,1773359434111,-1059.98619218,0.00018603,2]
[408291878,1773359434121,-6701.8310945,0.00018703,2]
[408291879,1773359434130,-4000.0,0.00018833,2]
[408291880,1773359434139,-6701.8310945,0.00018902,2]
[408291881,1773359434149,-786.31939,0.00019,2]
[408291882,1773359434159,-500.0,0.00019,2]
[408291883,1773359434168,-350.0,0.00019,2]
[408291884,1773359434178,-74339.76,0.00019,3]
[408291885,1773359434187,-1581.83793489,0.00019002,2]
[408291886,1773359434196,-500.0,0.00019101,2]
[408291887,1773359434206,-500.0,0.00019101,2]
[408291888,1773359434215,-6701.8310945,0.00019102,2]
[408291889,1773359434227,-1581.83793487,0.00019102,2]
[408291890,1773359434237,-1618.09,0.00019102,2]
[408291891,1773359434246,-153.88,0.00019139,2]
[408291892,1773359434256,-749.0,0.00019144,2]
[408291893,1773359434265,-1581.83793487,0.00019202,2]
[408291894,1773359434274,-4000.0,0.00019271,2]
[408291895,1773359434284,-6701.8310945,0.00019301,2]
[408291896,1773359434293,-1581.83793487,0.00019301,2]
[408291897,1773359434303,-1581.83793487,0.00019401,2]
[408291898,1773359434312,-168.0,0.00019454,2]
[408291899,1773359434322,-749.0,0.00019467,2]
[408291900,1773359434331,-6701.8310945,0.00019501,2]
[408291901,1773359434341,-1581.83793487,0.00019501,2]
[408291902,1773359434350,-749.0,0.00019517,2]
[408291903,1773359434361,-749.0,0.00019532,2]
[408291904,1773359434370,-1129.78128008,0.000196,2]
[408291905,1773359434380,-1037.40772818,0.000196,2]
[408291906,1773359434389,-1103.84287739,0.000196,2]
[408291907,1773359434398,-1220.00480717,0.000196,2]
[408291908,1773359434408,-1581.83793487,0.00019601,2]
[408291909,1773359434417,-4207.76,0.00019614,2]
[408291910,1773359434427,-204.30932807,0.000197,2]
[408291911,1773359434442,-268.543122,0.000197,3]
[408291912,1773359434452,-194.00777266,0.000197,2]
[408291913,1773359434461,-5000.0,0.000197,2]
[408291914,1773359434470,-6701.8310945,0.000197,2]
[408291915,1773359434482,-1581.83793487,0.000197,2]
[408291916,1773359434491,-507.0,0.00019739,4]
[408291917,1773359434500,-500.0,0.00019773,2]
[408291918,1773359434510,-318.88464127,0.0001979,2]
[408291919,1773359434520,-203.34619344,0.00019799,2]
[408291920,1773359434529,-500.0,0.00019799,2]
[408291921,1773359434538,-344.02863222,0.00019799,2]
[408291922,1773359434547,-448.4746016,0.00019799,2]
[408291923,1773359434557,-500.0,0.00019799,2]
[408291924,1773359434566,-239.05363166,0.00019799,2]
[408291925,1773359434575,-500.0,0.00019799,2]
[408291926,1773359434584,-500.0,0.00019799,2]
[408291927,1773359434593,-500.0,0.00019799,2]
[408291928,1773359434603,-500.0,0.00019799,2]
[408291929,1773359434612,-500.0,0.00019799,2]
[408291930,1773359434622,-500.0,0.00019799,2]
[408291931,1773359434631,-500.0,0.00019799,2]
[408291932,1773359434640,-500.0,0.00019799,2]
[408291933,1773359434649,-500.0,0.00019799,2]
[408291934,1773359434659,-500.0,0.00019799,2]
[408291935,1773359434668,-159233.15182822,0.000198,2]
[408291936,1773359434684,-32134.50194191,0.000198,2]
[408291937,1773359434695,-101100.24468059,0.000198,2]
[408291938,1773359434707,-2424.07895351,0.000198,2]
[408291939,1773359434717,-1109.70955247,0.000198,2]
[408291940,1773359434729,-848.23072916,0.000198,2]
[408291941,1773359434740,-257.8752,0.000198,2]
[408291942,1773359434751,-254.14013485,0.000198,2]
[408291943,1773359434761,-362.20975999,0.000198,2]
[408291944,1773359434772,-808.01349314,0.000198,2]
[408291945,1773359434782,-608.44531679,0.000198,2]
[408291947,1773359437728,-13286.98274416,0.000198,2]
[408291948,1773359437740,-3466.50685,0.000198,2]
[408291949,1773359437751,-1441.65226089,0.000198,2]
[408291950,1773359437764,-867.29626824,0.000198,2]
[408291951,1773359437776,-135016.96194812,0.000198,2]
[408291952,1773359437787,-2615.92995068,0.000198,2]
[408292003,1773359439819,-3320.02797806,0.000198,2]
[408292004,1773359439854,-1642.13552581,0.000198,2]
[408292005,1773359439865,-3559.21024742,0.000198,2]
[408292006,1773359440131,-1605.48421122,0.000198,2]
[408292015,1773359442616,-6314.35288153,0.000197,2]
[408292016,1773359442626,-33448.62303962,0.000198,2]
[408292017,1773359442638,-1788.0,0.000198,2]
[408292018,1773359442803,-5342.35833048,0.000198,2]
[408292042,1773359445539,-22414.45414343,0.000198,2]
[408292045,1773359776448,1897.83,9.243e-05,2]
[408292046,1773359776649,1897.83,9.73e-05,2]
[408292047,1773359776844,1897.83,0.00010216,2]
[408292048,1773359777063,1897.83,0.00010703,2]
[408292049,1773359777269,1897.83,0.00011189,2]
[408292050,1773359777472,510.86,0.00011676,2]
[408292051,1773359777498,1386.97,0.00011676,2]
[408292052,1773359777711,1897.83,0.00012162,2]
[408292053,1773359777945,1897.83,0.00012649,2]
[408292054,1773359778140,1897.83,0.00013135,2]
[408292055,1773359778346,1897.83,0.00013622,2]